Cogmind - Beta 9.6 @@@ ROGUE MODE // 2020.04.16 @ 14:16:27 Player: OccultOnion Result: Destroyed by S-27 Virus with Autogun Performance ------------- Evolutions (3) 1500 Regions Visited (4) 800 Robots Destroyed (64) 320 Value Destroyed (1615) 1615 Prototype IDs (2) 40 Alien Tech Used (0) 0 Bonus (0) 0 TOTAL SCORE: 4275 Bonus ------- None Cogmind --------- Core Integrity 0/700 Matter 300/300 Energy 52/100 System Corruption 6% Temperature Cool (0) Movement Core (50) Location -7/Factory Parts ------- > --- POWER (1) -------- (None) > --- PROPULSION (4) --- (None) > --- UTILITY (6) ------ Improved Signal Interpreter Improved Power Shielding > --- WEAPON (2) ------- (None) > --- INVENTORY (4) ---- Aerolev Unit Aerolev Unit Microactuators Peak State ------------ > --- POWER ------------ Light Nuclear Core > --- PROPULSION ------- Light Treads Titanium Leg Compact Wheel Gravmag System > --- UTILITY ---------- Heat Sink Small Storage Unit Improved Signal Interpreter Improved Power Shielding Hardened Medium Armor Plating Improved Shield Generator > --- WEAPON ----------- Light EM Pulse Cannon Heavy Ion Cannon > --- INVENTORY -------- Heat Sink Microactuators Advanced Beam Rifle Light EM Pulse Cannon [Rating: 33] Favorites ----------- Power Light Nuclear Core Engine Ion Engine Power Core Light Nuclear Core Propulsion Aluminum Leg Treads Light Treads Leg Aluminum Leg Wheel Wheel Hover Unit Gravmag System Utility Small Storage Unit Device Heat Sink Storage Small Storage Unit Processor Improved Signal Interpreter Protection Improved Power Shielding Weapon EM Pulse Cannon Energy Gun EM Pulse Gun Energy Cannon EM Pulse Cannon Ballistic Gun Light Assault Rifle Build | -11 -10 -9 -8 -7 ------- Run | Scr Mat Mat Mat Fac Slots Evolved 6 | . . 2 2 2 Power . | . . . . . Propulsion 2 | . . 1 1 . Utility 4 | . . 1 1 2 Weapon . | . . . . . Parts Attached 58 | 1 9 23 10 15 Power 5 | . 1 3 . 1 Engine 2 | . 1 1 . . Core 3 | . . 2 . 1 Reactor . | . . . . . Propulsion 17 | . 2 7 5 3 Treads 3 | . 1 1 1 . Leg 5 | . . 4 1 . Wheel 6 | . 1 2 3 . Hover 3 | . . . . 3 Flight . | . . . . . Utility 13 | 1 . 4 3 5 Device 8 | . . 4 1 3 Storage 1 | 1 . . . . Processor 1 | . . . . 1 Hackware . | . . . . . Protection 3 | . . . 2 1 Artifact . | . . . . . Weapon 23 | . 6 9 2 6 Energy Gun 11 | . 6 2 1 2 Energy Cannon 10 | . . 5 1 4 Ballistic Gun 2 | . . 2 . . Ballistic Cannon . | . . . . . Launcher . | . . . . . Special Weapon . | . . . . . Impact Weapon . | . . . . . Slashing Weapon . | . . . . . Piercing Weapon . | . . . . . Special Melee Weapon . | . . . . . Unidentified Prototypes 2 | . . . 1 1 Parts Lost 44 | . 5 16 . 23 Power 5 | . 1 2 . 2 Propulsion 16 | . 1 8 . 7 Utility 8 | . . 1 . 7 Weapon 15 | . 3 5 . 7 Highest Loss Streak 17 | . 3 5 . 17 Average Slot Usage (%) 88 | . 98 89 84 85 Engine 4 | . 14 5 . . Core 4 | . . 3 9 5 Treads 5 | . 8 2 6 5 Leg 10 | . 11 16 2 5 Wheel 9 | . 8 9 12 9 Device 8 | . . 9 9 12 Storage 18 | . 28 22 18 10 Processor 2 | . . . . 7 Protection 4 | . . . 9 9 Energy Gun 7 | . 24 7 . . Energy Cannon 8 | . . 6 17 11 Ballistic Gun 1 | . 1 4 . . Naked Turns . | . . . . . Heaviest Build 35 | 16 17 28 31 35 Greatest Support 26 | 20 20 20 26 26 Greatest Overweight (x) 5 | . . 5 3 2 Average Overweight (x) 1 | . . 1 1 . Largest Inventory Capacity 8 | 8 8 8 8 8 Average Capacity 7 | 6 8 8 8 6 Most Carried 8 | 6 8 8 8 8 Average Carried 6 | 5 6 5 7 5 Final Capacity 8 | 8 8 8 8 4 Final Carried 8 | 6 5 6 8 3 Class Distribution -------------------- 56% | Scavenger-Mutant 43% | Mutant Dominant Class ---------------- Mutant | -10/Materials Scavenger-Mutant | -9/Materials Scavenger-Mutant | -8/Materials Scavenger-Mutant | -7/Factory Resources | -11 -10 -9 -8 -7 ----------- Run | Scr Mat Mat Mat Fac Matter Collected 763 | 176 134 263 84 106 Remotely . | . . . . . Salvage Created 2176 | 86 381 1098 160 451 Parts 124 | 2 19 74 10 19 Haulers Intercepted 6 | . 2 3 . 1 Recyclers Shooed . | . . . . . Parts Field Recycled . | . . . . . Retrieved Matter . | . . . . . Parts Self-Destructed . | . . . . . Prevented . | . . . . . Kills | -11 -10 -9 -8 -7 ------- Run | Scr Mat Mat Mat Fac Combat Hostiles Destroyed 44 | . 6 27 1 10 Guns 21 | . 5 13 . 3 Cannons 16 | . . 13 1 2 AOE 7 | . 1 1 . 5 Classes Destroyed 10 | 1 5 2 . 2 Worker 5 | . . 2 . 3 Builder 2 | . . . . 2 Hauler 6 | . 2 3 . 1 Recycler 2 | 1 . . 1 . Mechanic 1 | . 1 . . . Watcher 4 | . 1 1 1 1 Swarmer 18 | . 3 12 . 3 Grunt 22 | . 3 13 . 6 Sentry 3 | . . 2 1 . Programmer 1 | . . . . 1 Best Kill Streak 13 | 1 4 8 1 13 Combat Bots Only 7 | . 3 7 1 7 Max Kills in Single Turn 7 | 1 1 2 1 7 Gunslinging . | . . . . . Exploded 3 | . 1 1 . 3 Melee . | . . . . . Uniques/NPCs Destroyed . | . . . . . Combat | -11 -10 -9 -8 -7 -------- Run | Scr Mat Mat Mat Fac Damage Taken 4277 | . 614 1281 75 2307 Core 980 | . 83 181 13 703 Absorbed by Shields 85 | . . . . 85 Core Remaining (%) 79 | 100 66 54 97 . Volleys Fired 162 | 3 30 94 5 30 Largest 2 | 2 2 2 2 2 Hottest 126 | 40 80 126 126 126 Shots Fired 242 | 6 60 132 9 35 Gun 184 | 6 60 104 . 14 Cannon 58 | . . 28 9 21 Launcher . | . . . . . Special . | . . . . . Kinetic 58 | 6 . 52 . . Thermal 28 | . . 12 . 16 Explosive . | . . . . . Electromagnetic 156 | . 60 68 9 19 Robot Hit Streak 16 | 4 10 14 16 13 Robot Miss Streak 4 | 1 4 3 1 4 Penetration Max . | . . . . . Secondary Targets 2 | . . 2 . . Max Gunslinging Chain 1 | . . 1 . . Shots Hit Robots 159 | 4 36 95 7 17 Core Hits 90 | 2 15 45 3 25 Critical Hits . | . . . . . Critical Kills . | . . . . . Critical Parts Destroyed . | . . . . . Melee Attacks . | . . . . . Impact . | . . . . . Slashing . | . . . . . Piercing . | . . . . . Sneak Attacks . | . . . . . Combat Hostiles . | . . . . . Follow-up Attacks . | . . . . . Damage Inflicted 4241 | 58 635 1476 211 1861 Guns 1314 | 58 449 716 . 91 Cannons 1069 | . . 592 186 291 Explosions 1837 | . 186 161 25 1465 Melee . | . . . . . Ramming 21 | . . 7 . 14 Kinetic 343 | 58 . 285 . . Thermal 875 | . 186 237 25 427 Explosive 1182 | . . . . 1182 Electromagnetic 1820 | . 449 947 186 238 Impact . | . . . . . Slashing . | . . . . . Piercing . | . . . . . Highest Corruption 6 | . . 3 . 6 Average Corruption 3 | . . 2 . 5 Corruption Purged . | . . . . . Effects 11 | . . 4 . 7 Message Errors 2 | . . . . 2 Matter Fused 3 | . . 3 . . Heat Flow Errors 1 | . . 1 . . Data Loss (minor) 3 | . . . . 3 Targeting Errors 1 | . . . . 1 Weapon Failures 1 | . . . . 1 Overload Shots . | . . . . . Overflow Damage 447 | . 72 14 . 361 Projectiles 2 | . . 2 . . Explosions 445 | . 72 12 . 361 Melee . | . . . . . Knockbacks . | . . . . . Impact . | . . . . . Kinetic . | . . . . . Secondary . | . . . . . Self-Inflicted Damage 556 | . 231 67 . 258 Shots 11 | . 5 2 . 4 Rammed 9 | . . 4 . 5 Targets Rammed 9 | . . 4 . 5 Kicked . | . . . . . Crushed . | . . . . . Highest Temperature 200 | . 200 175 72 96 Average Temperature 58 | . 86 42 28 31 Received Heat Transfer 954 | . 135 417 18 384 Siege Activations . | . . . . . Robots Corrupted 1 | . . 1 . . Combat Hostiles . | . . . . . Parts Fried 9 | . 3 4 . 2 Impact Corruptions . | . . . . . Robots Melted . | . . . . . Combat Hostiles . | . . . . . Parts Melted . | . . . . . Heat Transferred 1047 | . 200 375 50 422 Parts Sabotaged . | . . . . . Parts Stolen . | . . . . . Parts Stripped . | . . . . . Power Chain Reactions 8 | . 3 3 1 1 Missiles Intercepted . | . . . . . Alert | -11 -10 -9 -8 -7 ------- Run | Scr Mat Mat Mat Fac Peak Influence 359 | 5 189 325 153 359 Average Influence 137 | 2 81 196 115 132 Maximum Alert Level 1 | . . 1 . 1 Low Security (%) 75 | 100 100 41 100 82 Level 1 24 | . . 58 . 17 Level 2 . | . . . . . Level 3 . | . . . . . Level 4 . | . . . . . Level 5 . | . . . . . High Security . | . . . . . Max Security . | . . . . . Squads Dispatched 10 | . . 5 . 5 Investigation 4 | . . 3 . 1 Extermination 1 | . . . . 1 Reinforcement 4 | . . 2 . 2 Assault . | . . . . . Garrison 1 | . . . . 1 Intercept . | . . . . . Construction Impeded 2 | . . 1 . 1 Haulers Reinforced . | . . . . . Stealth | -11 -10 -9 -8 -7 --------- Run | Scr Mat Mat Mat Fac Distress Signals 5 | . 1 2 . 2 Communications Jammed . | . . . . . Distress Signals . | . . . . . Times Spotted 83 | . 9 41 2 31 Peak Tracking Total 13 | . 4 8 1 13 Tactical Retreats 5 | . 1 1 . 3 Traps | -11 -10 -9 -8 -7 ------- Run | Scr Mat Mat Mat Fac Traps Triggered 3 | . 1 2 . . Indirectly . | . . . . . Trap Hack Attempts . | . . . . . Triggered . | . . . . . Disarmed . | . . . . . Reprogrammed . | . . . . . Reused . | . . . . . Traps Extracted . | . . . . . Installed . | . . . . . Triggered . | . . . . . Machines | -11 -10 -9 -8 -7 ---------- Run | Scr Mat Mat Mat Fac Machines Disabled 20 | . 2 3 1 14 Max in Single Turn 5 | . 2 1 1 5 Machines Sabotaged . | . . . . . Garrisons Compromised . | . . . . . Overloaded Fab Kills . | . . . . . Fab Network Shutdowns . | . . . . . Hacking | -11 -10 -9 -8 -7 --------- Run | Scr Mat Mat Mat Fac Machines Accessed 6 | . . 4 . 2 Terminals 4 | . . 3 . 1 Fabricators . | . . . . . Repair Stations . | . . . . . Recycling Units 2 | . . 1 . 1 Scanalyzers . | . . . . . Garrison Access . | . . . . . Total Hacks 17 | . . 14 . 3 Successful 9 | . . 8 . 1 Failed 8 | . . 6 . 2 Catastrophic 2 | . . 1 . 1 Database Lockouts . | . . . . . Manual 10 | . . 10 . . Terminals 15 | . . 13 . 2 Fabricators . | . . . . . Repair Stations . | . . . . . Recycling Units 2 | . . 1 . 1 Scanalyzers . | . . . . . Garrison Access . | . . . . . Terminal Hacks 7 | . . 7 . . Alert Level 2 | . . 2 . . Unreport Threat 3 | . . 3 . . Zone Layout 2 | . . 2 . . Fabricator Hacks . | . . . . . Repair Station Hacks . | . . . . . Recycling Unit Hacks 2 | . . 1 . 1 Report Inventory 2 | . . 1 . 1 Scanalyzer . | . . . . . Garrison Access Hacks . | . . . . . Unauthorized Hacks . | . . . . . Terminals . | . . . . . Fabricators . | . . . . . Repair Stations . | . . . . . Recycling Units . | . . . . . Scanalyzers . | . . . . . Garrison Access . | . . . . . Data Cores Recovered . | . . . . . Used . | . . . . . Hacking Detections 4 | . . 3 . 1 Full Trace Events 4 | . . 3 . 1 Feedback Events . | . . . . . Feedback Blocked . | . . . . . Robot Schematics Acquired . | . . . . . Robots Built . | . . . . . Matter . | . . . . . Time . | . . . . . Total Robot Build Rating . | . . . . . Part Schematics Acquired . | . . . . . Parts Built . | . . . . . Matter . | . . . . . Time . | . . . . . Total Part Build Rating . | . . . . . Parts Repaired . | . . . . . Time . | . . . . . Parts Recycled . | . . . . . Recycled Matter . | . . . . . Retrieved Matter . | . . . . . Retrieved Components . | . . . . . Parts Scanalyzed . | . . . . . Part Schematics Acquired . | . . . . . Parts Damaged . | . . . . . Bothacking | -11 -10 -9 -8 -7 ------------ Run | Scr Mat Mat Mat Fac Used RIF Installer . | . . . . . Robots Hacked . | . . . . . Non-combat . | . . . . . Combat . | . . . . . Robot Hacks Applied . | . . . . . Relay Couplers Released . | . . . . . Robots Rewired . | . . . . . Allies Hacked . | . . . . . Hacks Repelled . | . . . . . Allies | -11 -10 -9 -8 -7 -------- Run | Scr Mat Mat Mat Fac Total Allies . | . . . . . Largest Group . | . . . . . Highest-Rated Group . | . . . . . Highest-Rated Ally . | . . . . . Total Orders . | . . . . . Ally Attacks . | . . . . . Total Damage . | . . . . . Kills . | . . . . . Allies Corrupted . | . . . . . Allies Melted . | . . . . . Intel | -11 -10 -9 -8 -7 ------- Run | Scr Mat Mat Mat Fac Robot Analysis Total . | . . . . . Derelict Logs Recovered . | . . . . . Drone Launches . | . . . . . Drone Recoveries . | . . . . . Exploration | -11 -10 -9 -8 -7 ------------- Run | Scr Mat Mat Mat Fac Turns Passed 1887 | 47 357 625 300 558 Spaces Moved 1082 | 30 164 301 224 363 Core 6 | . . 3 . 3 Treads 108 | . 91 . 15 2 Legs 142 | 30 73 39 . . Wheels 676 | . . 259 209 208 Hover 150 | . . . . 150 Flight . | . . . . . Fastest Speed 50 | 120 120 80 100 50 Average Speed 109 | 120 142 101 108 100 Slowest Speed 300 | 120 160 300 180 215 Overloaded Moves . | . . . . . Propulsion Burnouts . | . . . . . Robots Hopped . | . . . . . Cave-ins Triggered . | . . . . . Exploration Rate (%) 19 | 4 37 24 17 14 Regions Visited 4 Branch Regions . Pre-discovered Areas . | . . . . . Known Exits Taken . | . . . . . Unknown Exits Taken 4 | 1 1 1 1 . Scrap Searched . | . . . . . Spaces Dug . | . . . . . Terrain Destroyed 123 | . 30 10 3 80 Melee . | . . . . . Projectile . | . . . . . AOE 123 | . 30 10 3 80 Actions | -11 -10 -9 -8 -7 --------- Run | Scr Mat Mat Mat Fac Total 1564 | 36 229 500 278 521 Wait 152 | . 11 45 1 95 Move 1078 | 29 163 300 223 363 Hop . | . . . . . Pick Up 71 | 2 10 25 22 12 Fast Attach . | . . . . . Attach 44 | 1 5 17 6 15 Detach 2 | . . 1 1 . Swap 14 | . 4 6 4 . Drop 32 | 1 6 8 16 1 Fire 162 | 3 30 94 5 30 Melee . | . . . . . Ram 9 | . . 4 . 5 Kick . | . . . . . Crush . | . . . . . Escape Stasis . | . . . . . Rewire . | . . . . . Trap . | . . . . . Miscellaneous . | . . . . . Route ------- -11/Scrapyard -10/Materials (discovered 2 exits: *Mat / [*Min]) -9/Materials -8/Materials -7/Factory History --------- Turn | Location | Event 4 | -11/Scrapyard | Discovered new exit (range 3) 48 | -11/Scrapyard | Entered Materials 225 | -10/Materials | Lost 3 parts (1p1n1w) 303 | -10/Materials | Discovered new exit (range 14) 317 | -10/Materials | Build established: Mutant 381 | -10/Materials | Discovered new exit (range 15) 405 | -10/Materials | Entered another Materials area 405 | -9/Materials | Evolved 2 slots: Propulsion x1, Utility x1 497 | -9/Materials | Lost 4 parts (1p1n1u1w) 941 | -9/Materials | Destroyed 7 combat bots 968 | -9/Materials | Build established: Scavenger-Mutant 1015 | -9/Materials | Discovered new exit (range 16) 1020 | -9/Materials | Lost 5 parts (1p2n2w) 1030 | -9/Materials | Entered another Materials area 1030 | -8/Materials | Evolved 2 slots: Propulsion x1, Utility x1 1309 | -8/Materials | Discovered new exit (range 7) 1330 | -8/Materials | Entered Factory 1330 | -7/Factory | Evolved 2 slots: Utility x2 1621 | -7/Factory | Lost 6 parts (1p1n2u2w) 1779 | -7/Factory | Garrison activated, responded to threat 1814 | -7/Factory | Destroyed 7 combat bots 1844 | -7/Factory | Core integrity fell below 50% 1878 | -7/Factory | Core integrity fell below 20% 1888 | -7/Factory | Destroyed by S-27 Virus with Autogun Last Messages --------------- 01831_ R-06 Scavenger collects Prototype Hover Unit. 01832_ Penetrated by Slug. 01835_ R-06 Scavenger collects Prototype Hover Unit. 01838_ System corrupted: Component data lost. 01845_ Lgt. EM Pulse Cannon destroyed. 01853_ Connecting with Terminal... 01853_ ALERT: Suspicious activity at Terminal F016. Dispatching Investigation squad. 01856_ O-24 Administrator: "IFF HANDSHAKE FAILED. SECURING TERMINAL." 01864_ Acquired Arc Projector. 01868_ Aerolev Unit destroyed. 01881_ Arc Projector destroyed. 01882_ K3WPJUQII,X7ZKX8U6A>GQQ 01882_ Slug penetrates Wall. 01884_ Slammed into S-27 Virus. 01884_ Destabilizing: Core damaged (-14). 01885_ Slammed into S-27 Virus. 01888_ Heat Sink permanently disabled. 01888_ Destabilizing: Short circuit. 01888_ Broken Heat Sink destroyed. Map ----- +----------------------------------------------------+ | ???# """""??# # """ #?????# % | | ???????? """????# # """ #?????### # | | ????????????????# # ??? #???# ##### | | ????????????????# #! ????? #???# #???# | | ????????????????# ##???????????# #?### | | ????????????????# #????????????# ###"" | | ????????????????# #????????????# # | | ????????????????# #????????????# # | | ????????????????# #????????????# = # | | ????????????????# #????????????# # | | ????????????????# #????????????########### | | ????????????????# #??????????????????????# | | ????????????????# #??????????????????????# | | ????????????????# #??????????????????????# | | ????????????????# #??????????????????????# | | ????????????????# #????" ""??????????????# | | ????????????????# #??""" """" #??????????# | | ????????????????# # #??????????# | | ????????????????+ + ! [ ! = #??????????###"" | | ????????????????# ###############??????????### | | ????????????????# #?# ?????????????# | | ??????????????### ### """"?????????????? | | ??????????????# # """" ????????????? | | ??????????????# ! # """" ????????????? | | ??????????????# # s | """" #??????????? | | ??????????????# " #@ | #??????????? | | ??????????????# "T ss """" #??????????? | | ??????????????# # """" #??????????? | | ??????????????# # """"?????????????? | | ??????????????# # """"?????????????? | | ??????????????# # ????????????? | | ???????????########+################# ???????????? | | ???????????# #????????????????????? | | ???????????# #????????????????????? | | ???????????# """"""""" #????????????????????? | | ???????????# """"""""" #????????????????????? | | ???????????# """"""""" #????????????????????? | | ???????????# """"""""" #????????????????????? | | ???????????# ?"""""""""? #????????????????????? | | ??????????????????"""????????????????????????????? | | ?????????????????????????????????????????????????? | | ?????????????????????????????????????????????????? | | | | | | | | | | | | | | | | | +----------------------------------------------------+ Best States ------------- Heat Dissipation 45 Energy Generation 14 Energy Capacity 265 Matter Stores 300 Matter Capacity 300 Sight Range 16 Robot Scan Range 13 Terrain Scan Density 10 Armor Coverage 225 Power Shielding 66 Evasion (%) 55 Recoil Reduction 1 Item Schematics ----------------- None Robot Schematics ------------------ None Fabricated ------------ Nothing Alien Tech Used ----------------- None Achievements -------------- None Challenges ------------ None Game ------ Seed RemoteFactoryComputer Manual? 0 Play Time 00:28:30 Cumulative 51.8 hours Start 2020.04.16 @ 13:51:44 End 2020.04.16 @ 14:16:27 Sessions 1 Manual Loads 0 Difficulty Rogue Special Mode None Game No. 127 Rogue 127 Adventurer 0 Explorer 0 Win Type - Total 0 Types 0/0/0/0/0/0/0 Lore% 30 Gallery% 46 Achievement% 30 Wizard Run 0 Options --------- ASCII 0 Keyboard 1 Movement Numpad Keybinds 0 Fullscreen 2 Font 18/SmallcapsGlow Map View 76x50 Tactical HUD 1 Map Filters NONE Filters NONE Steam 1 RUN: 79b313c1-8979-4f31-8d36-3559c1190874